fUSD/lending_fUSD_20250123
["ID","MTS","AMOUNT","RATE_DAILY","PERIOD"]
[350100453,1737627038837,-500.0,0.00017805,2]
[350100455,1737627038846,-500.0,0.00017805,2]
[350100457,1737627038856,-500.0,0.00017805,2]
[350100459,1737627038866,-508.40840811,0.00017805,2]
[350100461,1737627038875,-199.19380736,0.00017805,2]
[350100463,1737627038886,-500.0,0.00017805,2]
[350100465,1737627038895,-500.0,0.00017805,2]
[350100467,1737627038904,-500.0,0.00017805,2]
[350100469,1737627038914,-500.0,0.00017805,2]
[350100471,1737627038923,-504.06276886,0.00017805,2]
[350100473,1737627038932,-320.25778784,0.00017805,2]
[350100475,1737627038941,-500.0,0.00017805,2]
[350100477,1737627038951,-500.0,0.00017805,2]
[350100479,1737627038959,-528.85972232,0.00017805,2]
[350100481,1737627038969,-500.0,0.00017805,2]
[350100483,1737627038978,-500.0,0.00017805,2]
[350100485,1737627038987,-502.51462917,0.00017805,2]
[350100487,1737627038996,-500.0,0.00017805,2]
[350100488,1737627039006,-507.42017349,0.00017805,2]
[350100489,1737627039015,-500.0,0.00017805,2]
[350100490,1737627039024,-500.0,0.00017805,2]
[350100491,1737627039034,-500.0,0.00017805,2]
[350100492,1737627039043,-500.0,0.00017805,2]
[350100493,1737627039052,-501.51542282,0.00017805,2]
[350100494,1737627039062,-501.5002319,0.00017805,2]
[350100495,1737627039071,-500.0,0.00017805,2]
[350100496,1737627039081,-500.0,0.00017805,2]
[350100497,1737627039090,-505.53735642,0.00017805,2]
[350100499,1737627039099,-500.0,0.00017805,2]
[350100500,1737627039109,-500.0,0.00017805,2]
[350100502,1737627039118,-500.0,0.00017805,2]
[350100504,1737627039127,-500.0,0.00017805,2]
[350100506,1737627039137,-500.0,0.00017805,2]
[350100508,1737627039147,-500.0,0.00017805,2]
[350100510,1737627039157,-500.0,0.00017805,2]
[350100512,1737627039166,-500.0,0.00017805,2]
[350100514,1737627039176,-500.0,0.00017805,2]
[350100516,1737627039185,-500.0,0.00017805,2]
[350100518,1737627039194,-500.0,0.00017805,2]
[350100520,1737627039204,-500.0,0.00017805,2]
[350100522,1737627039213,-500.0,0.00017805,2]
[350100539,1737627039371,-500.0,0.00017805,2]
[350100541,1737627039382,-500.0,0.00017805,2]
[350100543,1737627039392,-500.0,0.00017805,2]
[350100545,1737627039402,-500.0,0.00017805,2]
[350100547,1737627039412,-500.0,0.00017805,2]
[350100549,1737627039421,-500.0,0.00017805,2]
[350100551,1737627039431,-500.0,0.00017805,2]
[350100553,1737627039440,-500.0,0.00017805,2]
[350100555,1737627039450,-500.0,0.00017805,2]
[350100557,1737627039459,-500.0,0.00017805,2]
[350100559,1737627039469,-500.0,0.00017805,2]
[350100561,1737627039479,-503.75088261,0.00017805,2]
[350100563,1737627039488,-500.0,0.00017805,2]
[350100565,1737627039498,-500.0,0.00017805,2]
[350100567,1737627039508,-185.69038356,0.00017805,2]
[350100569,1737627039517,-500.0,0.00017805,2]
[350100571,1737627039527,-500.0,0.00017805,2]
[350100573,1737627039536,-500.0,0.00017805,2]
[350100576,1737627039546,-500.0,0.00017805,2]
[350100578,1737627039555,-500.0,0.00017805,2]
[350100581,1737627039565,-189.42218686,0.00017805,2]
[350100584,1737627039574,-221.66725139,0.00017805,2]
[350100588,1737627039600,-278.33274861,0.00017805,2]
[350100590,1737627039609,-500.0,0.00017805,2]
[350100592,1737627039619,-500.0,0.00017805,2]
[350100594,1737627039628,-500.0,0.00017805,2]
[350100596,1737627039638,-500.0,0.00017805,2]
[350100598,1737627039647,-500.0,0.00017805,2]
[350100600,1737627039657,-500.0,0.00017805,2]
[350100603,1737627039667,-505.01277674,0.00017805,2]
[350100605,1737627039676,-500.0,0.00017805,2]
[350100607,1737627039686,-500.0,0.00017805,2]
[350100608,1737627039695,-500.0,0.00017805,2]
[350100610,1737627039704,-500.0,0.00017805,2]
[350100613,1737627039714,-500.0,0.00017805,2]
[350100615,1737627039723,-500.0,0.00017805,2]
[350100617,1737627039733,-500.0,0.00017805,2]
[350100619,1737627039742,-502.95655556,0.00017805,2]
[350100620,1737627039751,-500.0,0.00017805,2]
[350100622,1737627039760,-500.0,0.00017805,2]
[350100624,1737627039769,-488.3677393,0.00017805,2]
[350100626,1737627039778,-500.0,0.00017805,2]
[350100628,1737627039787,-500.0,0.00017805,2]
[350100630,1737627039796,-500.0,0.00017805,2]
[350100632,1737627039805,-511.52331788,0.00017805,2]
[350100634,1737627039814,-367.81054071,0.00017805,2]
[350100636,1737627039824,-502.97656721,0.00017805,2]
[350100638,1737627039833,-500.0,0.00017805,2]
[350100640,1737627039842,-511.88984396,0.00017805,2]
[350100642,1737627039851,-500.0,0.00017805,2]
[350100644,1737627039860,-500.0,0.00017805,2]
[350100646,1737627039870,-500.0,0.00017805,2]
[350100648,1737627039879,-500.0,0.00017805,2]
[350100650,1737627039888,-500.0,0.00017805,2]
[350100652,1737627039897,-500.0,0.00017805,2]
[350100654,1737627039906,-500.0,0.00017805,2]
[350100656,1737627039915,-500.0,0.00017805,2]
[350100658,1737627039924,-500.0,0.00017805,2]
[350100660,1737627039933,-509.98193798,0.00017805,2]
[350100663,1737627039943,-373.87425911,0.00017805,2]
[350100666,1737627039964,-468.54598073,0.00017532,2]
[350100668,1737627039976,-31.45401927,0.00017532,2]
[350100670,1737627039985,-126.12574089,0.00017805,2]
[350100672,1737627039994,-500.0,0.00017805,2]
[350100674,1737627040004,-500.0,0.00017805,2]
[350100676,1737627040013,-500.0,0.00017805,2]
[350100678,1737627040022,-500.0,0.00017805,2]
[350100680,1737627040032,-500.0,0.00017805,2]
[350100682,1737627040041,-507.25012307,0.00017805,2]
[350100684,1737627040051,-504.35969917,0.00017805,2]
[350100686,1737627040059,-500.0,0.00017805,2]
[350100688,1737627040069,-500.0,0.00017805,2]
[350100690,1737627040078,-500.0,0.00017805,2]
[350100692,1737627040087,-518.68159334,0.00017805,2]
[350100694,1737627040098,-500.0,0.00017805,2]
[350100696,1737627040107,-500.0,0.00017805,2]
[350100698,1737627040116,-500.0,0.00017805,2]
[350100700,1737627040126,-500.0,0.00017805,2]
[350100702,1737627040135,-500.0,0.00017805,2]
[350100704,1737627040144,-500.0,0.00017805,2]
[350100706,1737627040154,-500.0,0.00017805,2]
[350100708,1737627040164,-500.0,0.00017805,2]
[350100710,1737627040173,-500.0,0.00017805,2]
[350100712,1737627040182,-504.42674643,0.00017805,2]
[350100714,1737627040192,-31.45906064,0.00017805,2]
[350100717,1737627040208,-468.54093936,0.00017805,2]
[350100719,1737627040217,-500.0,0.00017805,2]
[350100721,1737627040227,-521.4766754,0.00017805,2]
[350100723,1737627040236,-518.34871144,0.00017805,2]
[350100725,1737627040246,-500.0,0.00017805,2]
[350100727,1737627040255,-500.0,0.00017805,2]
[350100729,1737627040264,-500.0,0.00017805,2]
[350100731,1737627040273,-500.0,0.00017805,2]
[350100733,1737627040284,-541.56550986,0.00017805,2]
[350100735,1737627040293,-500.0,0.00017805,2]
[350100737,1737627040302,-513.79,0.00017805,2]
[350100739,1737627040316,-500.0,0.00017805,2]
[350100741,1737627040325,-500.0,0.00017805,2]
[350100743,1737627040334,-245.45078146,0.00017805,2]
[350100745,1737627040343,-500.0,0.00017805,2]
[350100747,1737627040353,-500.0,0.00017805,2]
[350100749,1737627040363,-500.0,0.00017805,2]
[350100751,1737627040372,-500.0,0.00017805,2]
[350100753,1737627040382,-524.83,0.00017805,2]
[350100755,1737627040392,-500.0,0.00017805,2]
[350100757,1737627040401,-500.0,0.00017805,2]
[350100759,1737627040411,-500.0,0.00017805,2]
[350100761,1737627040420,-1351.92,0.00017805,2]
[350100763,1737627040430,-585.16,0.00017805,2]
[350100765,1737627040440,-500.0,0.00017805,2]
[350100767,1737627040449,-500.0,0.00017805,2]
[350100769,1737627040459,-500.0,0.00017805,2]
[350100771,1737627040468,-597.69288765,0.00017805,2]
[350100773,1737627040477,-536.09,0.00017805,2]
[350100775,1737627040487,-500.0,0.00017805,2]
[350100777,1737627040496,-524.78604703,0.00017805,2]
[350100779,1737627040506,-500.0,0.00017805,2]
[350100781,1737627040515,-500.0,0.00017805,2]
[350100783,1737627040525,-1282.47,0.00017805,2]
[350100785,1737627040534,-2054.39,0.00017805,2]
[350100787,1737627040543,-500.0,0.00017805,2]
[350100789,1737627040553,-262.56797431,0.00017805,2]
[350100791,1737627040562,-500.0,0.00017805,2]
[350100793,1737627040571,-302.13695653,0.00017805,2]
[350100795,1737627040580,-500.0,0.00017805,2]
[350100797,1737627040590,-500.0,0.00017805,2]
[350100799,1737627040599,-509.44838685,0.00017805,2]
[350100800,1737627040609,-859.75,0.00017805,2]
[350100801,1737627040618,-500.0,0.00017805,2]
[350100802,1737627040627,-502.861357,0.00017805,2]
[350100803,1737627040636,-500.0,0.00017805,2]
[350100804,1737627040646,-500.0,0.00017805,2]
[350100805,1737627040655,-500.0,0.00017805,2]
[350100806,1737627040665,-500.0,0.00017805,2]
[350100807,1737627040674,-500.0,0.00017805,2]
[350100808,1737627040683,-500.0,0.00017805,2]
[350100809,1737627040693,-1194.15,0.00017805,2]
[350100810,1737627040702,-500.0,0.00017805,2]
[350100811,1737627040712,-500.0,0.00017805,2]
[350100812,1737627040721,-516.42773125,0.00017805,2]
[350100814,1737627040730,-500.0,0.00017805,2]
[350100816,1737627040739,-830.69,0.00017805,2]
[350100818,1737627040748,-500.0,0.00017805,2]
[350100820,1737627040757,-500.0,0.00017805,2]
[350100822,1737627040766,-500.0,0.00017805,2]
[350100824,1737627040776,-500.0,0.00017805,2]
[350100826,1737627040785,-507.10309,0.00017805,2]
[350100828,1737627040794,-426.02881072,0.00017805,2]
[350100830,1737627040803,-2154.6,0.00017805,2]
[350100832,1737627040812,-500.0,0.00017805,2]
[350100834,1737627040821,-500.0,0.00017805,2]
[350100835,1737627040831,-1196.89,0.00017805,2]
[350100837,1737627040840,-500.0,0.00017805,2]
[350100839,1737627040849,-500.0,0.00017805,2]
[350100841,1737627040858,-500.0,0.00017805,2]
[350100843,1737627040868,-500.0,0.00017805,2]
[350100845,1737627040878,-500.0,0.00017805,2]
[350100847,1737627040886,-525.02150924,0.00017805,2]
[350100849,1737627040896,-767.6,0.00017805,2]
[350100851,1737627040905,-500.0,0.00017805,2]
[350100853,1737627040914,-500.0,0.00017805,2]
[350100855,1737627040923,-500.0,0.00017805,2]
[350100857,1737627040931,-517.56610013,0.00017805,2]
[350100859,1737627040941,-500.0,0.00017805,2]
[350100861,1737627040950,-674.72,0.00017805,2]
[350100863,1737627040959,-477.79257661,0.00017805,2]
[350100865,1737627040969,-500.0,0.00017805,2]
[350100867,1737627040979,-500.0,0.00017805,2]
[350100869,1737627040988,-500.0,0.00017805,2]
[350100871,1737627040997,-500.0,0.00017805,2]
[350100873,1737627041007,-500.0,0.00017805,2]
[350100875,1737627041016,-500.0,0.00017805,2]
[350100877,1737627041026,-1160.51,0.00017805,2]
[350100879,1737627041036,-459.75060369,0.00017805,2]
[350100881,1737627041046,-500.0,0.00017805,2]
[350100883,1737627041055,-500.0,0.00017805,2]
[350100885,1737627041064,-500.0,0.00017805,2]
[350100887,1737627041073,-495.07382589,0.00017805,2]
[350100889,1737627041082,-1139.67,0.00017805,2]
[350100891,1737627041091,-507.7114738,0.00017805,2]
[350100893,1737627041101,-500.0,0.00017805,2]
[350100895,1737627041110,-677.78,0.00017805,2]
[350100897,1737627041119,-500.0,0.00017805,2]
[350100899,1737627041128,-500.0,0.00017805,2]
[350100901,1737627041138,-501.70351307,0.00017805,2]
[350100903,1737627041147,-500.0,0.00017805,2]
[350100905,1737627041156,-608.68552146,0.00017805,2]
[350100907,1737627041166,-500.0,0.00017805,2]
[350100909,1737627041175,-500.0,0.00017805,2]
[350100911,1737627041184,-500.0,0.00017805,2]
[350100913,1737627041194,-819.76,0.00017805,2]
[350100915,1737627041203,-500.0,0.00017805,2]
[350100917,1737627041213,-500.0,0.00017805,2]
[350100919,1737627041222,-500.0,0.00017805,2]
[350100921,1737627041231,-541.03716493,0.00017805,2]
[350100923,1737627041240,-500.0,0.00017805,2]
[350100925,1737627041249,-2839.68,0.00017805,2]
[350100927,1737627041259,-500.0,0.00017805,2]
[350100929,1737627041268,-500.0,0.00017805,2]
[350100931,1737627041278,-502.57267983,0.00017805,2]
[350100933,1737627041287,-500.0,0.00017805,2]
[350100935,1737627041297,-500.0,0.00017805,2]
[350100937,1737627041308,-515.48317263,0.00017805,2]
[350100939,1737627041318,-500.0,0.00017805,2]
[350100941,1737627041327,-500.0,0.00017805,2]
[350100943,1737627041336,-500.0,0.00017805,2]
[350100945,1737627041345,-501.06398208,0.00017805,2]
[350100947,1737627041356,-500.0,0.00017805,2]
[350100949,1737627041366,-500.0,0.00017805,2]
[350100951,1737627041375,-500.0,0.00017805,2]
[350100953,1737627041387,-500.0,0.00017805,2]
[350100955,1737627041398,-500.0,0.00017805,2]
[350100957,1737627041407,-500.0,0.00017805,2]
[350100958,1737627041418,-500.0,0.00017805,2]
[350100959,1737627041427,-500.0,0.00017805,2]
[350100960,1737627041436,-500.0,0.00017805,2]
[350100961,1737627041446,-639.66956993,0.00017805,2]
[350100962,1737627041455,-500.0,0.00017805,2]
[350100963,1737627041464,-500.0,0.00017805,2]
[350100964,1737627041474,-500.0,0.00017805,2]
[350100965,1737627041484,-500.0,0.00017805,2]
[350100966,1737627041493,-500.0,0.00017805,2]
[350100967,1737627041502,-502.78833435,0.00017805,2]
[350100968,1737627041512,-500.0,0.00017805,2]
[350100969,1737627041521,-500.0,0.00017805,2]
[350100970,1737627041531,-507.2,0.00017805,2]
[350100971,1737627041541,-500.0,0.00017806,2]
[350100972,1737627041551,-500.0,0.00017806,2]
[350100973,1737627041560,-500.0,0.00017806,2]
[350100974,1737627041570,-500.0,0.00017806,2]
[350100975,1737627041580,-500.0,0.00017806,2]
[350100976,1737627041589,-500.0,0.00017806,2]
[350100977,1737627041602,-500.0,0.00017806,2]
[350100978,1737627041611,-500.0,0.00017806,2]
[350100979,1737627041620,-500.0,0.00017806,2]
[350100980,1737627041630,-500.0,0.00017806,2]
[350100981,1737627041639,-500.0,0.00017806,2]
[350100982,1737627041649,-500.0,0.00017806,2]
[350100983,1737627041658,-500.0,0.00017806,2]
[350100984,1737627041668,-500.0,0.00017806,2]
[350100985,1737627041677,-500.0,0.00017806,2]
[350100986,1737627041688,-516.05,0.00017806,2]
[350100987,1737627041697,-500.0,0.00017806,2]
[350100988,1737627041707,-500.0,0.00017806,2]
[350100989,1737627041716,-500.0,0.00017806,2]
[350100990,1737627041726,-500.0,0.00017806,2]
[350100991,1737627041735,-140.3216135,0.00017806,2]
[350100992,1737627042195,-482.2242395,0.00017805,2]
[350100993,1737627042207,-17.7757605,0.00017805,2]
[350100994,1737627042216,-318.72170953,0.00017806,2]
[350100995,1737627042243,-40.95667697,0.00017806,2]
[350100996,1737627042252,-500.0,0.00017806,2]
[350100997,1737627042261,-500.0,0.00017806,2]
[350100998,1737627042270,-787.09,0.00017806,2]
[350100999,1737627042280,-500.0,0.00017806,2]
[350101000,1737627042289,-500.0,0.00017806,2]
[350101001,1737627042299,-500.0,0.00017806,2]
[350101002,1737627042310,-500.0,0.00017806,2]
[350101003,1737627042320,-500.0,0.00017806,2]
[350101004,1737627042330,-500.0,0.00017806,2]
[350101005,1737627042339,-500.0,0.00017806,2]
[350101006,1737627042349,-500.0,0.00017806,2]
[350101007,1737627042359,-500.0,0.00017806,2]
[350101008,1737627042368,-500.0,0.00017806,2]
[350101009,1737627042377,-500.0,0.00017806,2]
[350101010,1737627042539,-500.0,0.00017806,2]
[350101011,1737627042550,-500.0,0.00017806,2]
[350101012,1737627042560,-500.0,0.00017806,2]
[350101013,1737627042569,-500.0,0.00017806,2]
[350101014,1737627042579,-500.0,0.00017806,2]
[350101016,1737627042588,-500.0,0.00017806,2]
[350101018,1737627042597,-500.0,0.00017806,2]
[350101019,1737627042607,-500.0,0.00017806,2]
[350101020,1737627042616,-500.0,0.00017806,2]
[350101021,1737627042625,-500.0,0.00017806,2]
[350101022,1737627042634,-500.0,0.00017806,2]
[350101023,1737627042645,-116.42483539,0.00017806,2]
[350101024,1737627042656,-383.57516461,0.00017806,2]
[350101025,1737627042666,-500.0,0.00017806,2]
[350101026,1737627042675,-500.0,0.00017806,2]
[350101027,1737627042684,-500.0,0.00017806,2]
[350101028,1737627042693,-518.25,0.00017806,2]
[350101029,1737627042703,-500.0,0.00017806,2]
[350101030,1737627042712,-500.0,0.00017806,2]
[350101031,1737627042721,-295.11340639,0.00017806,2]
[350101032,1737627042733,-204.88659361,0.00017806,2]
[350101033,1737627042741,-500.0,0.00017806,2]
[350101034,1737627042751,-541.74,0.00017806,2]
[350101035,1737627042760,-500.0,0.00017806,2]
[350101036,1737627042769,-500.0,0.00017806,2]
[350101037,1737627042779,-357.515944,0.00017806,2]
[350101038,1737627042788,-580.08,0.00017806,2]
[350101039,1737627042797,-500.0,0.00017806,2]
[350101040,1737627042807,-500.0,0.00017806,2]
[350101041,1737627042817,-698.61,0.00017806,2]
[350101042,1737627042826,-867.0,0.00017806,2]
[350101043,1737627042836,-500.0,0.00017806,2]
[350101044,1737627042846,-447.9836794,0.00017806,2]
[350101045,1737627042866,-52.0163206,0.00017806,2]
[350101046,1737627042875,-649.11,0.00017806,2]
[350101047,1737627042884,-500.0,0.00017806,2]
[350101048,1737627042894,-399.2136794,0.00017806,2]
[350101051,1737627043438,-500.0,0.00017805,2]
[350101052,1737627043448,-100.7863206,0.00017806,2]
[350101053,1737627043457,-500.0,0.00017806,2]
[350101054,1737627043466,-101.20146786,0.00017806,2]
[350101059,1737627045733,-509.66,0.00017532,2]
[350101060,1737627045743,-500.0,0.00017532,2]
[350101061,1737627045752,-398.79853214,0.00017806,2]
[350101062,1737627045762,-1563.98,0.00017806,2]
[350101063,1737627045772,-315.694262,0.00017806,2]
[350101064,1737627045783,-603.73,0.00017806,2]
[350101065,1737627045792,-500.0,0.00017806,2]
[350101066,1737627045802,-3215.54,0.00017806,2]
[350101067,1737627045811,-806.14,0.00017806,2]
[350101068,1737627045821,-500.0,0.00017806,2]
[350101069,1737627045831,-500.0,0.00017806,2]
[350101070,1737627045840,-603.18,0.00017806,2]
[350101071,1737627045849,-500.0,0.00017806,2]
[350101072,1737627045858,-541.83,0.00017806,2]
[350101073,1737627045868,-1233.22,0.00017806,2]
[350101074,1737627045877,-1112.75,0.00017806,2]
[350101075,1737627045887,-555.99,0.00017806,2]
[350101076,1737627045899,-620.85,0.00017806,2]
[350101077,1737627045908,-500.0,0.00017806,2]
[350101078,1737627045918,-500.0,0.00017806,2]
[350101079,1737627045927,-1243.64,0.00017806,2]
[350101080,1737627045937,-1043.29,0.00017806,2]
[350101081,1737627045946,-1492.2,0.00017806,2]
[350101082,1737627045955,-744.31,0.00017806,2]
[350101083,1737627045965,-1568.44,0.00017806,2]
[350101084,1737627045976,-548.78,0.00017806,2]
[350101085,1737627045985,-833.22,0.00017806,2]
[350101086,1737627045994,-500.0,0.00017806,2]
[350101087,1737627046003,-500.0,0.00017806,2]
[350101088,1737627046012,-709.93,0.00017806,2]
[350101089,1737627046021,-500.0,0.00017806,2]
[350101090,1737627046031,-740.18,0.00017806,2]
[350101091,1737627046040,-500.0,0.00017806,2]
[350101092,1737627046049,-500.0,0.00017806,2]
[350101093,1737627046058,-724.09,0.00017806,2]
[350101094,1737627046067,-500.0,0.00017806,2]
[350101095,1737627046076,-853.94,0.00017806,2]
[350101097,1737627046085,-1146.31,0.00017806,2]
[350101099,1737627046094,-500.0,0.00017806,2]
[350101100,1737627046104,-1543.14,0.00017806,2]
[350101102,1737627046113,-1125.45,0.00017806,2]
[350101104,1737627046123,-1000.0,0.00017806,2]
[350101106,1737627046132,-581.25,0.00017806,2]
[350101108,1737627046142,-712.8,0.00017806,2]
[350101110,1737627046153,-531.3,0.00017806,2]
[350101112,1737627046162,-500.0,0.00017806,2]
[350101114,1737627046172,-500.0,0.00017806,2]
[350101116,1737627046181,-1164.06,0.00017806,2]
[350101118,1737627046191,-500.0,0.00017806,2]
[350101120,1737627046200,-1514.32,0.00017806,2]
[350101122,1737627046209,-500.0,0.00017806,2]
[350101124,1737627046219,-500.0,0.00017806,2]
[350101126,1737627046228,-1216.25,0.00017806,2]
[350101128,1737627046237,-500.0,0.00017806,2]
[350101130,1737627046247,-510.47731179,0.00017806,2]
[350101132,1737627046256,-500.0,0.00017806,2]
[350101134,1737627046265,-500.0,0.00017806,2]
[350101136,1737627046274,-500.0,0.00017806,2]
[350101138,1737627046283,-500.0,0.00017806,2]
[350101140,1737627046293,-709.89,0.00017806,2]
[350101142,1737627046302,-806.11,0.00017806,2]
[350101144,1737627046313,-500.0,0.00017806,2]
[350101146,1737627046324,-500.0,0.00017806,2]
[350101148,1737627046334,-500.0,0.00017806,2]
[350101150,1737627046345,-1473.76,0.00017806,2]
[350101152,1737627046354,-500.0,0.00017806,2]
[350101154,1737627046364,-500.0,0.00017806,2]
[350101156,1737627046373,-1289.92,0.00017806,2]
[350101158,1737627046382,-500.0,0.00017806,2]
[350101160,1737627046391,-500.0,0.00017806,2]
[350101161,1737627046402,-500.0,0.00017807,2]
[350101162,1737627046412,-500.0,0.00017807,2]
[350101163,1737627046423,-500.0,0.00017807,2]
[350101164,1737627046433,-500.0,0.00017807,2]
[350101165,1737627046444,-500.0,0.00017807,2]
[350101166,1737627046454,-535.35824389,0.00017807,2]
[350101167,1737627046466,-500.0,0.00017807,2]
[350101168,1737627046475,-500.0,0.00017807,2]
[350101169,1737627046485,-500.0,0.00017807,2]
[350101170,1737627046495,-525.91689088,0.00017807,2]
[350101171,1737627046504,-500.0,0.00017807,2]
[350101172,1737627046513,-500.0,0.00017807,2]
[350101173,1737627046523,-500.0,0.00017807,2]
[350101174,1737627046532,-500.0,0.00017807,2]
[350101175,1737627046541,-500.0,0.00017807,2]
[350101176,1737627046550,-500.0,0.00017807,2]
[350101177,1737627046559,-500.0,0.00017807,2]
[350101178,1737627046568,-500.0,0.00017807,2]
[350101179,1737627046578,-500.0,0.00017807,2]
[350101180,1737627046587,-500.0,0.00017807,2]
[350101181,1737627046596,-500.0,0.00017807,2]
[350101182,1737627046605,-500.0,0.00017807,2]
[350101183,1737627046614,-500.0,0.00017807,2]
[350101184,1737627046623,-500.0,0.00017807,2]
[350101185,1737627046632,-500.0,0.00017807,2]
[350101186,1737627046641,-502.42454371,0.00017807,2]
[350101187,1737627046651,-500.0,0.00017807,2]
[350101188,1737627046659,-500.0,0.00017807,2]
[350101189,1737627046669,-500.0,0.00017807,2]
[350101190,1737627046677,-519.68847817,0.00017807,2]
[350101191,1737627046686,-500.0,0.00017807,2]
[350101192,1737627046696,-500.0,0.00017807,2]
[350101193,1737627046705,-500.0,0.00017807,2]
[350101194,1737627046714,-500.0,0.00017807,2]
[350101195,1737627046723,-500.0,0.00017807,2]
[350101196,1737627046732,-500.0,0.00017807,2]
[350101197,1737627046741,-500.0,0.00017807,2]
[350101198,1737627046749,-500.0,0.00017807,2]
[350101199,1737627046759,-500.0,0.00017807,2]
[350101200,1737627046767,-500.0,0.00017807,2]
[350101201,1737627046779,-500.0,0.00017807,2]
[350101202,1737627046792,-500.0,0.00017807,2]
[350101203,1737627046801,-500.0,0.00017807,2]
[350101204,1737627046810,-500.0,0.00017807,2]
[350101205,1737627046819,-500.0,0.00017807,2]
[350101206,1737627046828,-500.0,0.00017807,2]
[350101207,1737627046837,-500.0,0.00017807,2]
[350101208,1737627046846,-526.46664265,0.00017807,2]
[350101209,1737627046855,-500.0,0.00017807,2]
[350101210,1737627046864,-500.0,0.00017807,2]
[350101211,1737627046874,-500.0,0.00017807,2]
[350101212,1737627046883,-509.04562352,0.00017807,2]
[350101213,1737627046892,-500.0,0.00017807,2]
[350101214,1737627046902,-489.57933605,0.00017807,2]
[350101215,1737627046911,-289.02667022,0.00017807,2]
[350101216,1737627046920,-500.0,0.00017807,2]
[350101217,1737627046929,-500.0,0.00017807,2]
[350101218,1737627046938,-500.0,0.00017807,2]
[350101219,1737627046947,-500.0,0.00017807,2]
[350101220,1737627046956,-500.0,0.00017807,2]
[350101221,1737627046965,-150.0,0.00017856,2]
[350101222,1737627046974,-500.87571151,0.00017873,2]
[350101223,1737627046983,-500.0,0.00017873,2]
[350101224,1737627046993,-1000.0,0.00017889,2]
[350101225,1737627047003,-1316.39532203,0.000179,2]
[350101226,1737627047014,-600.0,0.000179,6]
[350101227,1737627047023,-160.86651223,0.00017915,2]
[350101228,1737627047033,-1316.39532183,0.00018038,2]
[350101229,1737627047042,-500.0,0.00018078,2]
[350101230,1737627047051,-500.0,0.00018078,2]
[350101231,1737627047060,-697.0,0.00018078,2]
[350101232,1737627047069,-1396.57,0.00018078,2]
[350101233,1737627047078,-1128.55,0.00018078,2]
[350101234,1737627047087,-1922.38,0.00018078,2]
[350101235,1737627047097,-597.0,0.00018078,2]
[350101236,1737627047106,-500.0,0.00018078,2]
[350101237,1737627047115,-807.29,0.00018078,2]
[350101238,1737627047124,-580.33,0.00018078,2]
[350101239,1737627047133,-500.0,0.00018078,2]
[350101240,1737627047142,-500.0,0.00018079,2]
[350101241,1737627047152,-500.0,0.00018079,2]
[350101242,1737627047161,-500.0,0.00018079,2]
[350101243,1737627047172,-500.0,0.00018079,2]